[Event "Titled Tuesday Blitz July 25 Late 2023"]
[White "Vargas, Mauricio"]
[Black "Vafin, Ayrat"]
[WhiteFideId "4404572"]
[BlackFideId "4146530"]
[WhiteElo "1868"]
[BlackElo "2239"]
[Result "1-0"]
[Round "6"]
[TimeControl "180+2"]
[Date "2023.07.25"]
[WhiteClock "0:00:13"]
[BlackClock "0:00:07"]
[Board "168"]

1. e4 {[%clk 0:03:00]}  c6 {[%clk 0:02:59]} 2. Nc3 {[%clk 0:02:59]}  d5 {[%clk 0:03:00]} 3. d3 {[%clk 0:02:57]}  dxe4 {[%clk 0:02:56]} 4. Nxe4 {[%clk 0:02:56]}  Bf5 {[%clk 0:02:55]} 5. Ng3 {[%clk 0:02:55]}  Bg6 {[%clk 0:02:54]} 6. h4 {[%clk 0:02:55]}  h6 {[%clk 0:02:55]} 7. Nf3 {[%clk 0:02:48]}  Nd7 {[%clk 0:02:54]} 8. Qe2 {[%clk 0:02:29]}  e6 {[%clk 0:02:50]} 9. Ne4 {[%clk 0:02:25]}  Ngf6 {[%clk 0:02:46]} 10. Bf4 {[%clk 0:02:07]}  Bh5 {[%clk 0:02:34]} 11. O-O-O {[%clk 0:02:04]}  Be7 {[%clk 0:02:31]} 12. Kb1 {[%clk 0:02:01]}  Qb6 {[%clk 0:02:18]} 13. Be3 {[%clk 0:01:31]}  Qd8 {[%clk 0:02:09]} 14. Rh3 {[%clk 0:01:13]}  a5 {[%clk 0:01:32]} 15. Rg3 {[%clk 0:01:09]}  Bf8 {[%clk 0:01:03]} 16. Qd2 {[%clk 0:00:51]}  Bb4 {[%clk 0:00:37]} 17. c3 {[%clk 0:00:45]}  Be7 {[%clk 0:00:38]} 18. Re1 {[%clk 0:00:39]}  Bxf3 {[%clk 0:00:32]} 19. Rxf3 {[%clk 0:00:34]}  Nxe4 {[%clk 0:00:28]} 20. dxe4 {[%clk 0:00:33]}  Bxh4 {[%clk 0:00:25]} 21. Bd4 {[%clk 0:00:25]}  Nf6 {[%clk 0:00:20]} 22. Qe3 {[%clk 0:00:19]}  Ng4 {[%clk 0:00:16]} 23. Qf4 {[%clk 0:00:15]}  Nf6 {[%clk 0:00:07]} 24. e5 {[%clk 0:00:14]}  Nd5 {[%clk 0:00:07]} 25. Qxf7# {[%clk 0:00:13]} 1-0


[Site "https://www.chess.com"]

[Event "Titled Tuesday Blitz July 25 Late 2023"]
[White "Munoz Misselis, Nelson Carlos"]
[Black "Quirke, Jeffrey"]
[WhiteFideId "6601790"]
[BlackFideId "2013029"]
[WhiteElo "1752"]
[BlackElo "2182"]
[Result "0-1"]
[Round "6"]
[TimeControl "180+2"]
[Date "2023.07.25"]
[WhiteClock "0:02:21"]
[BlackClock "0:02:24"]
[Board "169"]

1. d4 {[%clk 0:02:42]}  e6 {[%clk 0:02:58]} 2. c4 {[%clk 0:02:42]}  b6 {[%clk 0:02:58]} 3. Nc3 {[%clk 0:02:42]}  Bb7 {[%clk 0:02:59]} 4. Nf3 {[%clk 0:02:42]}  Bb4 {[%clk 0:02:59]} 5. e3 {[%clk 0:02:43]}  f5 {[%clk 0:02:57]} 6. Be2 {[%clk 0:02:43]}  Nf6 {[%clk 0:02:58]} 7. Bd2 {[%clk 0:02:42]}  O-O {[%clk 0:02:54]} 8. a3 {[%clk 0:02:41]}  Bxc3 {[%clk 0:02:55]} 9. Bxc3 {[%clk 0:02:41]}  Ne4 {[%clk 0:02:55]} 10. Rc1 {[%clk 0:02:41]}  d6 {[%clk 0:02:53]} 11. Qc2 {[%clk 0:02:41]}  Nd7 {[%clk 0:02:53]} 12. O-O {[%clk 0:02:39]}  Rf6 {[%clk 0:02:53]} 13. d5 {[%clk 0:02:38]}  e5 {[%clk 0:02:49]} 14. Nd2 {[%clk 0:02:34]}  Nxd2 {[%clk 0:02:38]} 15. b4 {[%clk 0:02:30]}  Nxf1 {[%clk 0:02:35]} 16. Kxf1 {[%clk 0:02:30]}  Rf8 {[%clk 0:02:26]} 17. b5 {[%clk 0:02:26]}  a6 {[%clk 0:02:24]} 18. a4 {[%clk 0:02:26]}  axb5 {[%clk 0:02:24]} 19. axb5 {[%clk 0:02:21]}  Nc5 {[%clk 0:02:24]} 0-1


[Site "https://www.chess.com"]

[Event "Titled Tuesday Blitz July 25 Late 2023"]
[White "Andreikin, Dmitry"]
[Black "Nakamura, Hikaru"]
[WhiteFideId "4158814"]
[BlackFideId "2016192"]
[WhiteElo "3036"]
[BlackElo "3262"]
[Result "0-1"]
[Round "7"]
[TimeControl "180+2"]
[Date "2023.07.25"]
[WhiteClock "0:00:01"]
[BlackClock "0:00:18"]
[Board "4"]

1. d4 {[%clk 0:03:00]}  a6 {[%clk 0:02:58]} 2. a4 {[%clk 0:02:59]}  e6 {[%clk 0:02:54]} 3. Nf3 {[%clk 0:02:59]}  d5 {[%clk 0:02:54]} 4. Bf4 {[%clk 0:02:56]}  c5 {[%clk 0:02:50]} 5. e3 {[%clk 0:02:56]}  Bd6 {[%clk 0:02:50]} 6. Bg3 {[%clk 0:02:53]}  Nc6 {[%clk 0:02:51]} 7. c3 {[%clk 0:02:53]}  Nf6 {[%clk 0:02:37]} 8. Nbd2 {[%clk 0:02:53]}  Nh5 {[%clk 0:02:34]} 9. Bxd6 {[%clk 0:02:48]}  Qxd6 {[%clk 0:02:35]} 10. a5 {[%clk 0:02:39]}  O-O {[%clk 0:02:30]} 11. Be2 {[%clk 0:02:37]}  Nf6 {[%clk 0:02:30]} 12. Qa4 {[%clk 0:02:33]}  e5 {[%clk 0:02:14]} 13. Qa3 {[%clk 0:02:27]}  exd4 {[%clk 0:02:14]} 14. cxd4 {[%clk 0:02:25]}  Nb4 {[%clk 0:02:13]} 15. Rc1 {[%clk 0:02:22]}  c4 {[%clk 0:02:10]} 16. O-O {[%clk 0:02:17]}  Bf5 {[%clk 0:01:26]} 17. b3 {[%clk 0:02:10]}  Bd3 {[%clk 0:01:26]} 18. Bxd3 {[%clk 0:02:00]}  cxd3 {[%clk 0:01:27]} 19. Ne5 {[%clk 0:02:00]}  Rfd8 {[%clk 0:01:26]} 20. Rc5 {[%clk 0:01:47]}  Nc6 {[%clk 0:01:05]} 21. Nxc6 {[%clk 0:01:14]}  bxc6 {[%clk 0:01:05]} 22. Qa4 {[%clk 0:01:14]}  Ne4 {[%clk 0:01:01]} 23. Rxc6 {[%clk 0:01:14]}  Qd7 {[%clk 0:00:56]} 24. Nf3 {[%clk 0:01:08]}  f6 {[%clk 0:00:35]} 25. h3 {[%clk 0:00:57]}  Rac8 {[%clk 0:00:32]} 26. Rxc8 {[%clk 0:00:51]}  Qxc8 {[%clk 0:00:33]} 27. Qb4 {[%clk 0:00:49]}  Rd7 {[%clk 0:00:23]} 28. Rd1 {[%clk 0:00:17]}  Rb7 {[%clk 0:00:23]} 29. Qa3 {[%clk 0:00:05]}  Qc2 {[%clk 0:00:22]} 30. Qc1 {[%clk 0:00:04]}  Nc3 {[%clk 0:00:18]} 31. Re1 {[%clk 0:00:01]}  Ne2+ {[%clk 0:00:18]} 0-1


[Site "https://www.chess.com"]

[Event "Titled Tuesday Blitz July 25 Late 2023"]
[White "Erigaisi Arjun"]
[Black "Anton Guijarro, David"]
[WhiteFideId "35009192"]
[BlackFideId "2285525"]
[WhiteElo "3086"]
[BlackElo "2975"]
[Result "1-0"]
[Round "7"]
[TimeControl "180+2"]
[Date "2023.07.25"]
[WhiteClock "0:00:13"]
[BlackClock "0:00:00"]
[Board "6"]

1. c4 {[%clk 0:03:00]}  e6 {[%clk 0:02:58]} 2. g3 {[%clk 0:02:59]}  d5 {[%clk 0:02:59]} 3. Bg2 {[%clk 0:03:00]}  c6 {[%clk 0:02:59]} 4. b3 {[%clk 0:02:59]}  d4 {[%clk 0:02:58]} 5. Nf3 {[%clk 0:02:57]}  c5 {[%clk 0:02:58]} 6. O-O {[%clk 0:02:57]}  Nc6 {[%clk 0:02:59]} 7. e3 {[%clk 0:02:58]}  Nf6 {[%clk 0:02:59]} 8. Re1 {[%clk 0:02:56]}  Bd6 {[%clk 0:02:58]} 9. exd4 {[%clk 0:02:54]}  cxd4 {[%clk 0:02:58]} 10. d3 {[%clk 0:02:55]}  O-O {[%clk 0:02:57]} 11. Bg5 {[%clk 0:02:51]}  h6 {[%clk 0:02:56]} 12. Bxf6 {[%clk 0:02:51]}  Qxf6 {[%clk 0:02:57]} 13. Nbd2 {[%clk 0:02:52]}  Qe7 {[%clk 0:02:54]} 14. h4 {[%clk 0:02:46]}  Re8 {[%clk 0:02:52]} 15. h5 {[%clk 0:02:45]}  a5 {[%clk 0:02:49]} 16. Nh4 {[%clk 0:02:45]}  Bb4 {[%clk 0:02:49]} 17. Re4 {[%clk 0:02:32]}  Bc3 {[%clk 0:02:46]} 18. Rb1 {[%clk 0:02:28]}  Nb4 {[%clk 0:02:41]} 19. Nf5 {[%clk 0:02:12]}  Qc5 {[%clk 0:02:34]} 20. Qg4 {[%clk 0:02:09]}  Qf8 {[%clk 0:02:09]} 21. Nxh6+ {[%clk 0:02:09]}  Kh8 {[%clk 0:02:06]} 22. Nxf7+ {[%clk 0:02:04]}  Qxf7 {[%clk 0:02:07]} 23. Rf4 {[%clk 0:02:05]}  e5 {[%clk 0:01:44]} 24. Rxf7 {[%clk 0:02:05]}  Bxg4 {[%clk 0:01:44]} 25. Ne4 {[%clk 0:02:06]}  Bxh5 {[%clk 0:01:34]} 26. Rxb7 {[%clk 0:02:05]}  Nxd3 {[%clk 0:01:32]} 27. Nd6 {[%clk 0:01:56]}  Rf8 {[%clk 0:01:31]} 28. f4 {[%clk 0:01:26]}  exf4 {[%clk 0:01:27]} 29. Rb5 {[%clk 0:01:26]}  Bg6 {[%clk 0:01:18]} 30. Bxa8 {[%clk 0:01:19]}  Rxa8 {[%clk 0:01:18]} 31. Rg5 {[%clk 0:01:17]}  Bh7 {[%clk 0:01:14]} 32. Rf1 {[%clk 0:01:15]}  Bd2 {[%clk 0:01:08]} 33. Nf7+ {[%clk 0:00:57]}  Kg8 {[%clk 0:01:06]} 34. Nh6+ {[%clk 0:00:58]}  Kf8 {[%clk 0:01:04]} 35. Nf5 {[%clk 0:00:57]}  Ra7 {[%clk 0:00:57]} 36. gxf4 {[%clk 0:00:52]}  Bxf4 {[%clk 0:00:49]} 37. Nxd4 {[%clk 0:00:50]}  Kg8 {[%clk 0:00:41]} 38. Ne6 {[%clk 0:00:49]}  Be3+ {[%clk 0:00:39]} 39. Kh2 {[%clk 0:00:49]}  Nf2 {[%clk 0:00:25]} 40. Rd5 {[%clk 0:00:33]}  Be4 {[%clk 0:00:19]} 41. Rd8+ {[%clk 0:00:32]}  Kf7 {[%clk 0:00:18]} 42. Ng5+ {[%clk 0:00:25]}  Bxg5 {[%clk 0:00:18]} 43. Rxf2+ {[%clk 0:00:25]}  Bf6 {[%clk 0:00:18]} 44. Kg3 {[%clk 0:00:18]}  Bc6 {[%clk 0:00:09]} 45. Rd6 {[%clk 0:00:18]}  Bd7 {[%clk 0:00:08]} 46. c5 {[%clk 0:00:17]}  Rc7 {[%clk 0:00:07]} 47. a3 {[%clk 0:00:14]}  Be6 {[%clk 0:00:03]} 48. b4 {[%clk 0:00:14]}  axb4 {[%clk 0:00:04]} 49. axb4 {[%clk 0:00:15]}  Rb7 {[%clk 0:00:04]} 50. Rf4 {[%clk 0:00:14]}  Ke7 {[%clk 0:00:04]} 51. Re4 {[%clk 0:00:14]}  Kf7 {[%clk 0:00:02]} 52. Rdxe6 {[%clk 0:00:13]}  Rxb4 {[%clk 0:00:00]} 53. Rxf6+ {[%clk 0:00:13]} 1-0


[Site "https://www.chess.com"]

[Event "Titled Tuesday Blitz July 25 Late 2023"]
[White "Kamsky, Gata"]
[Black "Fedoseev, Vladimir"]
[WhiteFideId "2000024"]
[BlackFideId "24130737"]
[WhiteElo "2945"]
[BlackElo "3064"]
[Result "0-1"]
[Round "7"]
[TimeControl "180+2"]
[Date "2023.07.25"]
[WhiteClock "0:00:21"]
[BlackClock "0:01:38"]
[Board "8"]

1. d4 {[%clk 0:03:00]}  g6 {[%clk 0:02:30]} 2. Nf3 {[%clk 0:02:59]}  Bg7 {[%clk 0:02:30]} 3. c3 {[%clk 0:02:59]}  b6 {[%clk 0:02:27]} 4. e4 {[%clk 0:02:54]}  Bb7 {[%clk 0:02:27]} 5. Bd3 {[%clk 0:02:55]}  d6 {[%clk 0:02:26]} 6. a4 {[%clk 0:02:53]}  a6 {[%clk 0:02:25]} 7. O-O {[%clk 0:02:52]}  Nd7 {[%clk 0:02:22]} 8. Re1 {[%clk 0:02:52]}  e5 {[%clk 0:02:19]} 9. Nbd2 {[%clk 0:02:51]}  Ne7 {[%clk 0:02:17]} 10. Nc4 {[%clk 0:02:48]}  exd4 {[%clk 0:02:15]} 11. cxd4 {[%clk 0:02:48]}  O-O {[%clk 0:02:15]} 12. Bg5 {[%clk 0:02:46]}  h6 {[%clk 0:02:14]} 13. Bh4 {[%clk 0:02:46]}  g5 {[%clk 0:02:11]} 14. Bg3 {[%clk 0:02:46]}  f5 {[%clk 0:02:03]} 15. Nxg5 {[%clk 0:00:54]}  hxg5 {[%clk 0:01:58]} 16. Qh5 {[%clk 0:00:54]}  fxe4 {[%clk 0:01:40]} 17. Qxg5 {[%clk 0:00:21]}  Nf5 {[%clk 0:01:38]} 0-1


[Site "https://www.chess.com"]

[Event "Titled Tuesday Blitz July 25 Late 2023"]
[White "Maksimovic, Bojan"]
[Black "Grischuk, Alexander"]
[WhiteFideId "14408120"]
[BlackFideId "4126025"]
[WhiteElo "2905"]
[BlackElo "3029"]
[Result "0-1"]
[Round "7"]
[TimeControl "180+2"]
[Date "2023.07.25"]
[WhiteClock "0:00:02"]
[BlackClock "0:00:04"]
[Board "10"]

1. Nf3 {[%clk 0:03:00]}  Nf6 {[%clk 0:02:50]} 2. g3 {[%clk 0:02:58]}  c5 {[%clk 0:02:50]} 3. Bg2 {[%clk 0:02:58]}  Nc6 {[%clk 0:02:50]} 4. O-O {[%clk 0:02:58]}  e5 {[%clk 0:02:50]} 5. d3 {[%clk 0:02:59]}  d5 {[%clk 0:02:49]} 6. Nbd2 {[%clk 0:02:59]}  Bd6 {[%clk 0:02:35]} 7. e4 {[%clk 0:02:59]}  d4 {[%clk 0:02:36]} 8. Nc4 {[%clk 0:02:58]}  Bc7 {[%clk 0:02:36]} 9. a4 {[%clk 0:02:58]}  O-O {[%clk 0:02:29]} 10. Nh4 {[%clk 0:02:58]}  Rb8 {[%clk 0:02:26]} 11. Nf5 {[%clk 0:02:30]}  a6 {[%clk 0:02:15]} 12. f4 {[%clk 0:02:24]}  exf4 {[%clk 0:02:07]} 13. Bxf4 {[%clk 0:02:22]}  Bxf4 {[%clk 0:02:07]} 14. Rxf4 {[%clk 0:02:22]}  b5 {[%clk 0:02:04]} 15. axb5 {[%clk 0:02:21]}  axb5 {[%clk 0:02:05]} 16. Nd2 {[%clk 0:02:21]}  Ne5 {[%clk 0:01:59]} 17. Qe2 {[%clk 0:01:58]}  Re8 {[%clk 0:01:51]} 18. Raf1 {[%clk 0:01:56]}  Rb6 {[%clk 0:01:52]} 19. h3 {[%clk 0:01:51]}  Bxf5 {[%clk 0:01:27]} 20. Rxf5 {[%clk 0:01:51]}  g6 {[%clk 0:01:28]} 21. R5f2 {[%clk 0:01:48]}  Kg7 {[%clk 0:01:28]} 22. g4 {[%clk 0:01:47]}  h6 {[%clk 0:01:25]} 23. Nf3 {[%clk 0:01:42]}  Nfd7 {[%clk 0:01:20]} 24. Nxe5 {[%clk 0:01:19]}  Nxe5 {[%clk 0:01:19]} 25. Qd2 {[%clk 0:01:19]}  Ree6 {[%clk 0:01:02]} 26. Bf3 {[%clk 0:00:51]}  Qg5 {[%clk 0:00:57]} 27. Qe2 {[%clk 0:00:16]}  Rf6 {[%clk 0:00:48]} 28. Bg2 {[%clk 0:00:10]}  c4 {[%clk 0:00:44]} 29. Qd2 {[%clk 0:00:03]}  Qxd2 {[%clk 0:00:19]} 30. Rxd2 {[%clk 0:00:04]}  cxd3 {[%clk 0:00:11]} 31. cxd3 {[%clk 0:00:04]}  Rxf1+ {[%clk 0:00:09]} 32. Kxf1 {[%clk 0:00:05]}  Rc6 {[%clk 0:00:09]} 33. Ke2 {[%clk 0:00:03]}  Rc1 {[%clk 0:00:09]} 34. Kf2 {[%clk 0:00:03]}  Kf6 {[%clk 0:00:08]} 35. Bf3 {[%clk 0:00:03]}  Kg5 {[%clk 0:00:08]} 36. Bd1 {[%clk 0:00:02]}  Kf4 {[%clk 0:00:07]} 37. Be2 {[%clk 0:00:02]}  b4 {[%clk 0:00:07]} 38. Bd1 {[%clk 0:00:02]}  Kg5 {[%clk 0:00:03]} 39. Kg3 {[%clk 0:00:01]}  Kf6 {[%clk 0:00:03]} 40. h4 {[%clk 0:00:02]}  g5 {[%clk 0:00:03]} 41. hxg5+ {[%clk 0:00:02]}  hxg5 {[%clk 0:00:04]} 42. Kf2 {[%clk 0:00:03]}  Ke7 {[%clk 0:00:04]} 43. Ke2 {[%clk 0:00:03]}  Kd6 {[%clk 0:00:05]} 44. Kf2 {[%clk 0:00:03]}  Ng6 {[%clk 0:00:05]} 45. Bb3 {[%clk 0:00:03]}  f6 {[%clk 0:00:04]} 46. Bc4 {[%clk 0:00:04]}  Ne5 {[%clk 0:00:04]} 47. b3 {[%clk 0:00:04]}  Nxg4+ {[%clk 0:00:04]} 48. Kf3 {[%clk 0:00:04]}  Ne5+ {[%clk 0:00:04]} 49. Ke2 {[%clk 0:00:04]}  g4 {[%clk 0:00:04]} 50. Ra2 {[%clk 0:00:04]}  g3 {[%clk 0:00:02]} 51. Ra6+ {[%clk 0:00:04]}  Ke7 {[%clk 0:00:02]} 52. Ra7+ {[%clk 0:00:04]}  Kf8 {[%clk 0:00:02]} 53. Ra8+ {[%clk 0:00:05]}  Ke7 {[%clk 0:00:03]} 54. Rg8 {[%clk 0:00:05]}  Rc2+ {[%clk 0:00:02]} 55. Kd1 {[%clk 0:00:05]}  Rg2 {[%clk 0:00:02]} 56. Ke1 {[%clk 0:00:06]}  Nf3+ {[%clk 0:00:02]} 57. Kd1 {[%clk 0:00:07]}  Rd2+ {[%clk 0:00:02]} 58. Kc1 {[%clk 0:00:07]}  g2 {[%clk 0:00:03]} 59. e5 {[%clk 0:00:04]}  Rf2 {[%clk 0:00:03]} 60. exf6+ {[%clk 0:00:04]}  Kxf6 {[%clk 0:00:04]} 61. Rf8+ {[%clk 0:00:03]}  Ke7 {[%clk 0:00:04]} 62. Rf7+ {[%clk 0:00:03]}  Ke8 {[%clk 0:00:04]} 63. Bd5 {[%clk 0:00:02]}  g1=Q# {[%clk 0:00:04]} 0-1


[Site "https://www.chess.com"]

[Event "Titled Tuesday Blitz July 25 Late 2023"]
[White "Fressinet, Laurent"]
[Black "Mamedov, Rauf"]
[WhiteFideId "608742"]
[BlackFideId "13401653"]
[WhiteElo "2888"]
[BlackElo "3023"]
[Result "1-0"]
[Round "7"]
[TimeControl "180+2"]
[Date "2023.07.25"]
[WhiteClock "0:00:03"]
[BlackClock "0:00:02"]
[Board "11"]

1. d4 {[%clk 0:02:56]}  Nf6 {[%clk 0:03:00]} 2. Nf3 {[%clk 0:02:53]}  g6 {[%clk 0:03:00]} 3. Bg5 {[%clk 0:02:53]}  Bg7 {[%clk 0:03:00]} 4. Nbd2 {[%clk 0:02:53]}  O-O {[%clk 0:02:59]} 5. c3 {[%clk 0:02:53]}  d6 {[%clk 0:02:59]} 6. e4 {[%clk 0:02:53]}  h6 {[%clk 0:03:00]} 7. Bh4 {[%clk 0:02:53]}  c5 {[%clk 0:03:00]} 8. dxc5 {[%clk 0:02:53]}  dxc5 {[%clk 0:03:01]} 9. Bc4 {[%clk 0:02:53]}  Nc6 {[%clk 0:03:00]} 10. Qe2 {[%clk 0:02:53]}  Nh5 {[%clk 0:02:44]} 11. Qe3 {[%clk 0:02:52]}  Qb6 {[%clk 0:02:41]} 12. Bb3 {[%clk 0:02:46]}  Na5 {[%clk 0:02:39]} 13. Bxe7 {[%clk 0:02:44]}  Re8 {[%clk 0:02:32]} 14. Bxc5 {[%clk 0:02:43]}  Qa6 {[%clk 0:02:33]} 15. Bc2 {[%clk 0:02:25]}  g5 {[%clk 0:02:04]} 16. Bd3 {[%clk 0:02:15]}  Qe6 {[%clk 0:02:04]} 17. g3 {[%clk 0:02:02]}  Nc6 {[%clk 0:01:59]} 18. Nd4 {[%clk 0:01:56]}  Qh3 {[%clk 0:01:41]} 19. Nxc6 {[%clk 0:01:50]}  bxc6 {[%clk 0:01:42]} 20. O-O-O {[%clk 0:01:50]}  Rb8 {[%clk 0:01:37]} 21. Bc4 {[%clk 0:01:42]}  Nf6 {[%clk 0:01:30]} 22. f3 {[%clk 0:01:29]}  Be6 {[%clk 0:01:28]} 23. Qe2 {[%clk 0:01:19]}  a5 {[%clk 0:01:21]} 24. Qf1 {[%clk 0:01:14]}  Qh5 {[%clk 0:01:19]} 25. g4 {[%clk 0:01:12]}  Qg6 {[%clk 0:01:19]} 26. h4 {[%clk 0:01:10]}  gxh4 {[%clk 0:01:18]} 27. Bxe6 {[%clk 0:01:02]}  Rxe6 {[%clk 0:01:18]} 28. Nc4 {[%clk 0:01:02]}  a4 {[%clk 0:01:06]} 29. Rd6 {[%clk 0:00:59]}  a3 {[%clk 0:00:56]} 30. Bxa3 {[%clk 0:00:57]}  Qg5+ {[%clk 0:00:53]} 31. Kb1 {[%clk 0:00:53]}  Nxe4 {[%clk 0:00:35]} 32. fxe4 {[%clk 0:00:49]}  Rxe4 {[%clk 0:00:36]} 33. Rd7 {[%clk 0:00:42]}  Rf4 {[%clk 0:00:31]} 34. Qd3 {[%clk 0:00:38]}  Qxg4 {[%clk 0:00:22]} 35. Rd8+ {[%clk 0:00:19]}  Rxd8 {[%clk 0:00:22]} 36. Qxd8+ {[%clk 0:00:20]}  Kh7 {[%clk 0:00:23]} 37. Qd3+ {[%clk 0:00:20]}  f5 {[%clk 0:00:23]} 38. Nd6 {[%clk 0:00:17]}  Qg2 {[%clk 0:00:19]} 39. Rd1 {[%clk 0:00:12]}  Rf3 {[%clk 0:00:18]} 40. Qc2 {[%clk 0:00:10]}  Rf2 {[%clk 0:00:18]} 41. Qd3 {[%clk 0:00:09]}  Rf3 {[%clk 0:00:18]} 42. Qc4 {[%clk 0:00:09]}  h3 {[%clk 0:00:16]} 43. Ne8 {[%clk 0:00:08]}  h2 {[%clk 0:00:13]} 44. Qf7 {[%clk 0:00:08]}  Qg6 {[%clk 0:00:10]} 45. Qxg6+ {[%clk 0:00:07]}  Kxg6 {[%clk 0:00:11]} 46. Nxg7 {[%clk 0:00:04]}  Rg3 {[%clk 0:00:08]} 47. Bc5 {[%clk 0:00:04]}  Kxg7 {[%clk 0:00:06]} 48. Rh1 {[%clk 0:00:04]}  Rg2 {[%clk 0:00:06]} 49. a4 {[%clk 0:00:04]}  Kf7 {[%clk 0:00:03]} 50. a5 {[%clk 0:00:04]}  Ke6 {[%clk 0:00:04]} 51. a6 {[%clk 0:00:05]}  Kd5 {[%clk 0:00:05]} 52. a7 {[%clk 0:00:03]}  Kxc5 {[%clk 0:00:03]} 53. a8=Q {[%clk 0:00:03]}  Rg1+ {[%clk 0:00:04]} 54. Ka2 {[%clk 0:00:03]}  Rxh1 {[%clk 0:00:05]} 55. Qa5+ {[%clk 0:00:03]}  Kd6 {[%clk 0:00:05]} 56. Qd8+ {[%clk 0:00:03]}  Ke6 {[%clk 0:00:05]} 57. Qe8+ {[%clk 0:00:02]}  Kd6 {[%clk 0:00:05]} 58. Qg6+ {[%clk 0:00:03]}  Kc5 {[%clk 0:00:02]} 59. Qxf5+ {[%clk 0:00:02]}  Kb6 {[%clk 0:00:02]} 60. Qf2+ {[%clk 0:00:02]}  c5 {[%clk 0:00:03]} 61. Kb3 {[%clk 0:00:02]}  h5 {[%clk 0:00:02]} 62. Kc4 {[%clk 0:00:01]}  h4 {[%clk 0:00:02]} 63. Qxc5+ {[%clk 0:00:02]}  Kb7 {[%clk 0:00:02]} 64. Qe7+ {[%clk 0:00:02]}  Kc8 {[%clk 0:00:02]} 65. Qe6+ {[%clk 0:00:02]}  Kc7 {[%clk 0:00:03]} 66. Qe2 {[%clk 0:00:02]}  h3 {[%clk 0:00:03]} 67. Qf2 {[%clk 0:00:02]}  Kd7 {[%clk 0:00:03]} 68. Qd2+ {[%clk 0:00:02]}  Kc8 {[%clk 0:00:03]} 69. Qf2 {[%clk 0:00:02]}  Kb7 {[%clk 0:00:03]} 70. Qf3+ {[%clk 0:00:02]}  Kc7 {[%clk 0:00:03]} 71. Qxh1 {[%clk 0:00:03]}  Kd6 {[%clk 0:00:02]} 72. Qxh2+ {[%clk 0:00:03]} 1-0


[Site "https://www.chess.com"]

[Event "Titled Tuesday Blitz July 25 Late 2023"]
[White "Kevlishvili, Robby"]
[Black "Erdogmus, Yagiz Kaan"]
[WhiteFideId "1040634"]
[BlackFideId "44599790"]
[WhiteElo "3007"]
[BlackElo "2859"]
[Result "1-0"]
[Round "7"]
[TimeControl "180+2"]
[Date "2023.07.25"]
[WhiteClock "0:00:45"]
[BlackClock "0:00:01"]
[Board "13"]

1. Nf3 {[%clk 0:03:00]}  c5 {[%clk 0:02:57]} 2. g3 {[%clk 0:03:00]}  Nc6 {[%clk 0:02:56]} 3. Bg2 {[%clk 0:03:00]}  g6 {[%clk 0:02:57]} 4. c4 {[%clk 0:02:58]}  Bg7 {[%clk 0:02:56]} 5. O-O {[%clk 0:02:57]}  e6 {[%clk 0:02:56]} 6. Nc3 {[%clk 0:02:46]}  Nge7 {[%clk 0:02:55]} 7. d3 {[%clk 0:02:43]}  O-O {[%clk 0:02:54]} 8. Qd2 {[%clk 0:02:43]}  d5 {[%clk 0:02:46]} 9. b3 {[%clk 0:02:41]}  b6 {[%clk 0:02:46]} 10. Bb2 {[%clk 0:02:40]}  Bb7 {[%clk 0:02:46]} 11. Rad1 {[%clk 0:02:39]}  d4 {[%clk 0:02:42]} 12. Ne4 {[%clk 0:02:36]}  f5 {[%clk 0:02:41]} 13. Neg5 {[%clk 0:02:36]}  Qd7 {[%clk 0:02:41]} 14. e3 {[%clk 0:02:32]}  h6 {[%clk 0:02:40]} 15. Nh3 {[%clk 0:02:32]}  g5 {[%clk 0:02:37]} 16. Ne1 {[%clk 0:02:23]}  e5 {[%clk 0:02:27]} 17. Kh1 {[%clk 0:02:14]}  e4 {[%clk 0:01:39]} 18. Ng1 {[%clk 0:02:07]}  Qe6 {[%clk 0:01:26]} 19. Nc2 {[%clk 0:01:48]}  exd3 {[%clk 0:00:42]} 20. Qxd3 {[%clk 0:01:39]}  Ne5 {[%clk 0:00:42]} 21. Qd2 {[%clk 0:01:36]}  Bxg2+ {[%clk 0:00:41]} 22. Kxg2 {[%clk 0:01:37]}  Qc6+ {[%clk 0:00:41]} 23. f3 {[%clk 0:01:34]}  dxe3 {[%clk 0:00:25]} 24. Nxe3 {[%clk 0:01:33]}  N7g6 {[%clk 0:00:24]} 25. Qd5+ {[%clk 0:01:29]}  Qxd5 {[%clk 0:00:23]} 26. Nxd5 {[%clk 0:01:30]}  Rad8 {[%clk 0:00:21]} 27. Rfe1 {[%clk 0:01:29]}  Rfe8 {[%clk 0:00:22]} 28. Nh3 {[%clk 0:01:24]}  Kf7 {[%clk 0:00:20]} 29. f4 {[%clk 0:01:12]}  gxf4 {[%clk 0:00:20]} 30. Nhxf4 {[%clk 0:01:12]}  Nxf4+ {[%clk 0:00:14]} 31. Nxf4 {[%clk 0:01:08]}  Nxc4 {[%clk 0:00:04]} 32. Rxd8 {[%clk 0:00:59]}  Rxe1 {[%clk 0:00:04]} 33. Bxg7 {[%clk 0:00:55]}  Kxg7 {[%clk 0:00:04]} 34. bxc4 {[%clk 0:00:55]}  Ra1 {[%clk 0:00:05]} 35. Rd7+ {[%clk 0:00:55]}  Kf6 {[%clk 0:00:05]} 36. Rxa7 {[%clk 0:00:56]}  Ke5 {[%clk 0:00:06]} 37. Ra6 {[%clk 0:00:53]}  Kd4 {[%clk 0:00:05]} 38. Rxb6 {[%clk 0:00:53]}  Rxa2+ {[%clk 0:00:05]} 39. Kh3 {[%clk 0:00:49]}  Kxc4 {[%clk 0:00:05]} 40. Rxh6 {[%clk 0:00:50]}  Kd4 {[%clk 0:00:06]} 41. Ne6+ {[%clk 0:00:48]}  Kd5 {[%clk 0:00:06]} 42. Nxc5 {[%clk 0:00:47]}  Kxc5 {[%clk 0:00:05]} 43. Rh5 {[%clk 0:00:47]}  Rf2 {[%clk 0:00:04]} 44. g4 {[%clk 0:00:48]}  Kd4 {[%clk 0:00:05]} 45. Rxf5 {[%clk 0:00:48]}  Ra2 {[%clk 0:00:04]} 46. Kg3 {[%clk 0:00:47]}  Ke4 {[%clk 0:00:05]} 47. Rf4+ {[%clk 0:00:46]}  Ke5 {[%clk 0:00:05]} 48. h4 {[%clk 0:00:46]}  Ra3+ {[%clk 0:00:04]} 49. Rf3 {[%clk 0:00:46]}  Ra8 {[%clk 0:00:04]} 50. h5 {[%clk 0:00:46]}  Ra1 {[%clk 0:00:04]} 51. Kh4 {[%clk 0:00:46]}  Ke4 {[%clk 0:00:01]} 52. Rf8 {[%clk 0:00:45]} 1-0


[Site "https://www.chess.com"]